fUSD/lending_fUSD_20260202
["ID","MTS","AMOUNT","RATE_DAILY","PERIOD"]
[404312666,1770054774713,600.0,0.000108,3]
[404312667,1770054776800,800.0,0.000109,3]
[404312668,1770054778890,1000.0,0.000119,4]
[404312669,1770054796385,5531.0,0.000134,5]
[404312670,1770054806762,682.0,0.00011015,2]
[404312671,1770054827976,5531.0,0.000134,5]
[404312672,1770054831384,728.51564628,0.00010916,2]
[404312673,1770054832145,2191.93999723,0.00010916,2]
[404312674,1770054841987,150.0,0.00011015,2]
[404312675,1770054842939,300.0,0.00011015,2]
[404312676,1770054844583,237.755682,0.00011015,2]
[404312677,1770054844620,500.0,0.00011015,2]
[404312678,1770054845276,240.86332009,0.00011015,2]
[404312679,1770054845372,238.09731211,0.00011015,2]
[404312680,1770054845489,1877.2292026,0.00010916,2]
[404312681,1770054845510,314.71079463,0.00010916,2]
[404312682,1770054845756,500.0,0.00011015,2]
[404312683,1770054847903,618.19459661,0.00011015,2]
[404312684,1770054847959,618.19459661,0.00011015,2]
[404312685,1770054848024,618.19459661,0.00011015,2]
[404312686,1770054848092,618.19459661,0.00011015,2]
[404312687,1770054848137,618.19459661,0.00011015,2]
[404312688,1770054848185,618.19459661,0.00011015,2]
[404312689,1770054848230,618.19459661,0.00011015,2]
[404312690,1770054848295,618.19459661,0.00011015,2]
[404312691,1770054848348,618.19459661,0.00011015,2]
[404312692,1770054848421,618.19459661,0.00011015,2]
[404312693,1770054848521,618.19459661,0.00011015,2]
[404312694,1770054848588,618.19459661,0.00011015,2]
[404312695,1770054848650,618.19459661,0.00011015,2]
[404312696,1770054848693,618.19459661,0.00011015,2]
[404312697,1770054848760,530.57485283,0.00011015,2]
[404312698,1770054848790,87.61974378,0.00011015,2]
[404312699,1770054848858,618.19459661,0.00011015,2]
[404312700,1770054848912,618.19459661,0.00011015,2]
[404312701,1770054848978,618.19459661,0.00011015,2]
[404312702,1770054849030,618.19459661,0.00011015,2]
[404312703,1770054849096,618.19459661,0.00011015,2]
[404312704,1770054849153,618.19459661,0.00011015,2]
[404312705,1770054849200,618.19459661,0.00011015,2]
[404312706,1770054849250,618.19459661,0.00011015,2]
[404312707,1770054849536,618.19459661,0.00011015,2]
[404312708,1770054849587,618.19459661,0.00011015,2]
[404312709,1770054849644,618.19459661,0.00011015,2]
[404312710,1770054849724,618.19459661,0.00011015,2]
[404312711,1770054849772,618.19459661,0.00011015,2]
[404312712,1770054849836,618.19459661,0.00011015,2]
[404312713,1770054849885,618.19459661,0.00011015,2]
[404312714,1770054849935,618.19459661,0.00011015,2]
[404312715,1770054849988,21.27671046,0.00011015,2]
[404312716,1770054850013,596.91788615,0.00011015,2]
[404312717,1770054850066,618.19459661,0.00011015,2]
[404312718,1770054850115,618.19459661,0.00011015,2]
[404312719,1770054850157,618.19459661,0.00011015,2]
[404312720,1770054850203,618.19459661,0.00011015,2]
[404312721,1770054850245,618.19459661,0.00011015,2]
[404312722,1770054850300,618.19459661,0.00011015,2]
[404312723,1770054850395,618.19459661,0.00011015,2]
[404312724,1770054850446,618.19459661,0.00011015,2]
[404312725,1770054850521,618.19459661,0.00011015,2]
[404312726,1770054859588,5531.0,0.000133,5]
[404312727,1770054870492,174.48261702,0.00010448,2]
[404312728,1770054886702,1476.42254084,0.00010916,2]
[404312729,1770054891189,1466.0,0.000133,5]
[404312730,1770054893709,205.83607011,0.00010916,2]
[404312731,1770054901573,1200.0,0.00011015,2]
[404312732,1770054909910,500.0,0.00011015,2]
[404312733,1770054910261,282.59951639,0.00011015,2]
[404312734,1770054910284,120.98188365,0.00011015,2]
[404312735,1770054910399,538.86427386,0.00011015,2]
[404312736,1770054919629,618.35206984,0.00011015,2]
[404312737,1770054919703,618.35206984,0.00011015,2]
[404312738,1770054919754,618.35206984,0.00011015,2]
[404312739,1770054919808,618.35206984,0.00011015,2]
[404312740,1770054919859,618.35206984,0.00011015,2]
[404312741,1770054919909,618.35206984,0.00011015,2]
[404312742,1770054919968,618.35206984,0.00011015,2]
[404312743,1770054920044,618.35206984,0.00011015,2]
[404312744,1770054920107,618.35206984,0.00011015,2]
[404312745,1770054920149,618.35206984,0.00011015,2]
[404312746,1770054920195,618.35206984,0.00011015,2]
[404312747,1770054920238,618.35206984,0.00011015,2]
[404312748,1770054920281,618.35206984,0.00011015,2]
[404312749,1770054920315,152.30793861,0.00010916,2]
[404312750,1770054920363,618.35206984,0.00011015,2]
[404312751,1770054920405,530.92692612,0.00011015,2]
[404312752,1770054920433,87.42514372,0.00011015,2]
[404312753,1770054920479,618.35206984,0.00011015,2]
[404312754,1770054920520,618.35206984,0.00011015,2]
[404312755,1770054920561,618.35206984,0.00011015,2]
[404312756,1770054920605,618.35206984,0.00011015,2]
[404312757,1770054920652,618.35206984,0.00011015,2]
[404312758,1770054920691,618.35206984,0.00011015,2]
[404312759,1770054920738,618.35206984,0.00011015,2]
[404312760,1770054920803,618.35206984,0.00011015,2]
[404312761,1770054920845,618.35206984,0.00011015,2]
[404312762,1770054920891,618.35206984,0.00011015,2]
[404312763,1770054920934,618.35206984,0.00011015,2]
[404312764,1770054920974,618.35206984,0.00011015,2]
[404312765,1770054921026,618.35206984,0.00011015,2]
[404312766,1770054921068,618.35206984,0.00011015,2]
[404312767,1770054921112,618.35206984,0.00011015,2]
[404312768,1770054921176,618.35206984,0.00011015,2]
[404312769,1770054921221,18.95173884,0.00011015,2]
[404312770,1770054921247,599.400331,0.00011015,2]
[404312771,1770054921562,618.35206984,0.00011015,2]
[404312772,1770054921603,618.35206984,0.00011015,2]
[404312773,1770054921644,618.35206984,0.00011015,2]
[404312774,1770054921703,618.35206984,0.00011015,2]
[404312775,1770054921757,618.35206984,0.00011015,2]
[404312776,1770054921802,618.35206984,0.00011015,2]
[404312777,1770054921847,618.35206984,0.00011015,2]
[404312778,1770054921892,618.35206984,0.00011015,2]
[404312779,1770054922873,500.0,0.00011015,2]
[404312780,1770054937430,500.0,0.00011015,2]
[404312781,1770054937481,175.69975447,0.00011015,2]
[404312782,1770054937530,654.72572101,0.00011015,2]
[404312783,1770054937568,654.72572101,0.00011015,2]
[404312784,1770054937614,654.72572101,0.00011015,2]
[404312785,1770054937683,654.72572101,0.00011015,2]
[404312786,1770054937743,654.72572101,0.00011015,2]
[404312787,1770054937782,4.46475076,0.00011015,2]
[404312788,1770054937810,650.26097025,0.00011015,2]
[404312789,1770054937855,654.72572101,0.00011015,2]
[404312790,1770054937897,654.72572101,0.00011015,2]
[404312791,1770054937940,654.72572101,0.00011015,2]
[404312792,1770054937979,654.72572101,0.00011015,2]
[404312793,1770054938566,654.72572101,0.00011015,2]
[404312794,1770054938610,654.72572101,0.00011015,2]
[404312795,1770054938656,654.72572101,0.00011015,2]
[404312811,1770054984184,201.378,0.00011015,2]
[404312813,1770055000120,2050.87422959,0.00010916,2]
[404312815,1770055007026,984.2816939,0.00010916,2]
[404312816,1770055007324,1530.13505919,0.00010916,2]
[404312817,1770055007347,520.7391704,0.00010916,2]
[404312818,1770055008594,150.0,0.00010988,2]
[404312819,1770055009113,150.0,0.00010988,2]
[404312820,1770055022131,150.0,0.00011015,2]
[404312821,1770055022851,300.0,0.00011015,2]
[404312822,1770055025184,151.0,0.00011016,2]
[404312823,1770055025267,500.0,0.00011016,2]
[404312824,1770055025814,151.0,0.00011016,2]
[404312825,1770055025852,225.99669476,0.00011015,2]
[404312826,1770055026411,526.22237984,0.00011016,2]
[404312827,1770055026481,151.0,0.00011016,2]
[404312828,1770055027077,151.0,0.00011016,2]
[404312829,1770055027678,151.0,0.00011016,2]
[404312830,1770055028309,151.0,0.00011016,2]
[404312831,1770055029300,151.0,0.00011016,2]
[404312832,1770055029623,151.0,0.00011016,2]
[404312833,1770055030279,151.0,0.00011016,2]
[404312834,1770055030924,151.0,0.00011016,2]
[404312835,1770055031518,151.0,0.00011016,2]
[404312836,1770055032120,151.0,0.00011016,2]
[404312837,1770055032846,151.0,0.00011016,2]
[404312838,1770055033452,151.0,0.00011016,2]
[404312839,1770055034086,151.0,0.00011016,2]
[404312840,1770055034802,151.0,0.00011016,2]
[404312841,1770055035074,276.82822016,0.00010916,2]
[404312842,1770055035431,151.0,0.00011016,2]
[404312843,1770055035914,500.0,0.00011016,2]
[404312844,1770055036048,151.0,0.00011016,2]
[404312845,1770055036084,198.10408806,0.00010916,2]
[404312846,1770055036536,500.0,0.00011016,2]
[404312847,1770055036741,151.0,0.00011016,2]
[404312848,1770055037503,151.0,0.00011016,2]
[404312849,1770055037694,500.0,0.00011016,2]
[404312850,1770055038384,500.0,0.00011016,2]
[404312851,1770055038578,500.0,0.00011015,2]
[404312852,1770055038620,500.0,0.00011015,2]
[404312853,1770055038663,500.0,0.00011015,2]
[404312854,1770055038718,482.11944678,0.00011015,2]
[404312855,1770055038747,17.88055322,0.00011015,2]
[404312856,1770055038978,500.0,0.00011016,2]
[404312857,1770055039039,500.0,0.00011015,2]
[404312858,1770055039090,500.0,0.00011015,2]
[404312859,1770055039130,500.0,0.00011015,2]
[404312860,1770055039175,500.0,0.00011015,2]
[404312861,1770055039247,500.0,0.00011015,2]
[404312862,1770055039562,500.0,0.00011015,2]
[404312863,1770055039606,500.0,0.00011015,2]
[404312864,1770055039655,500.0,0.00011015,2]
[404312865,1770055039696,500.0,0.00011015,2]
[404312866,1770055039743,500.0,0.00011015,2]
[404312867,1770055039787,500.0,0.00011015,2]
[404312868,1770055039828,500.0,0.00011015,2]
[404312869,1770055039875,500.0,0.00011015,2]
[404312870,1770055039950,500.0,0.00011015,2]
[404312871,1770055040010,500.0,0.00011015,2]
[404312872,1770055040050,500.0,0.00011015,2]
[404312873,1770055040088,500.0,0.00011015,2]
[404312874,1770055040135,500.0,0.00011015,2]
[404312875,1770055040174,482.12944678,0.00011016,2]
[404312876,1770055040195,17.87055322,0.00011016,2]
[404312877,1770055040464,500.0,0.00011015,2]
[404312878,1770055040517,500.0,0.00011015,2]
[404312879,1770055040553,8982.13944678,0.00010916,2]
[404312880,1770055040575,1017.86055322,0.00010916,2]
[404312881,1770055040620,500.0,0.00011015,2]
[404312882,1770055040661,500.0,0.00011015,2]
[404312883,1770055040704,371.8308889,0.00011015,2]
[404312884,1770055040749,500.0,0.00011015,2]
[404312885,1770055040798,500.0,0.00011015,2]
[404312886,1770055040843,500.0,0.00011015,2]
[404312887,1770055040883,500.0,0.00011015,2]
[404312888,1770055040934,500.0,0.00011015,2]
[404312889,1770055041010,500.0,0.00011015,2]
[404312890,1770055041059,500.0,0.00011015,2]
[404312891,1770055041108,500.0,0.00011016,2]
[404312892,1770055041150,500.0,0.00011015,2]
[404312893,1770055041183,-1869.7053,0.00011016,2]
[404312894,1770055041391,500.0,0.00011016,2]
[404312895,1770055041440,-1260.5994,0.00011016,2]
[404312896,1770055041616,500.0,0.00011016,2]
[404312897,1770055042279,500.0,0.00011016,2]
[404312898,1770055042934,500.0,0.00011016,2]
[404312899,1770055045020,200.0,0.00011016,2]
[404312900,1770055045754,500.0,0.00011016,2]
[404312901,1770055046256,-500.0,0.00011016,2]
[404312902,1770055046291,-4000.01,0.00011016,2]
[404312903,1770055046387,410.31855788,0.00011016,2]
[404312904,1770055046415,89.68144212,0.00011016,2]
[404312905,1770055046986,500.0,0.00011016,2]
[404312906,1770055047566,500.0,0.00011016,2]
[404312907,1770055048157,500.0,0.00011016,2]
[404312908,1770055048776,500.0,0.00011016,2]
[404312909,1770055049418,500.0,0.00011016,2]
[404312911,1770055052090,500.0,0.00011016,2]
[404312912,1770055053866,500.0,0.00011015,2]
[404312913,1770055053906,500.0,0.00011015,2]
[404312914,1770055053951,500.0,0.00011015,2]
[404312915,1770055053998,500.0,0.00011015,2]
[404312916,1770055054039,500.0,0.00011015,2]
[404312917,1770055054087,500.0,0.00011015,2]
[404312918,1770055054137,500.0,0.00011015,2]
[404312919,1770055054180,500.0,0.00011015,2]
[404312920,1770055054224,500.0,0.00011015,2]
[404312921,1770055054263,500.0,0.00011015,2]
[404312922,1770055054321,500.0,0.00011016,2]
[404312923,1770055054419,500.0,0.00011015,2]
[404312924,1770055054459,500.0,0.00011015,2]
[404312925,1770055054532,410.32855788,0.00011015,2]
[404312926,1770055054560,89.67144212,0.00011015,2]
[404312927,1770055054612,500.0,0.00011015,2]
[404312929,1770055054655,500.0,0.00011015,2]
[404312930,1770055054702,500.0,0.00011015,2]
[404312931,1770055054742,500.0,0.00011015,2]
[404312932,1770055054803,500.0,0.00011015,2]
[404312933,1770055054846,500.0,0.00011015,2]
[404312934,1770055054888,500.0,0.00011015,2]
[404312935,1770055054932,500.0,0.00011015,2]
[404312936,1770055054972,500.0,0.00011015,2]
[404312937,1770055055008,500.0,0.00011016,2]
[404312938,1770055055501,500.0,0.00011016,2]
[404312939,1770055058688,204.6704,0.00010916,2]
[404312940,1770055063993,-4256.61331759,0.00011016,2]
[404312941,1770055064041,-10000.01,0.00011016,2]
[404312942,1770055064182,-10000.01,0.00011016,2]
[404312943,1770055064317,-4968.40281759,0.00011016,2]
[404312944,1770055064343,-63.20436482,0.00011016,2]
[404312945,1770055064418,-5000.01,0.00011016,2]
[404312946,1770055064488,-10000.01,0.00011016,2]
[404312947,1770055064724,-5000.01,0.00011016,2]
[404312948,1770055066047,-10000.01,0.00011016,2]
[404312949,1770055066208,-10000.01,0.00011016,2]
[404312950,1770055066338,-10000.01,0.00011016,2]
[404312951,1770055066456,-10000.01,0.00011016,2]
[404312952,1770055066564,-10000.01,0.00011016,2]
[404312953,1770055066752,-10000.01,0.00011016,2]
[404312954,1770055070352,-5000.01,0.00011016,2]
[404312955,1770055070483,-5000.01,0.00011016,2]
[404312956,1770055077783,218.37851653,0.00011015,2]
[404312957,1770055081497,300.0,0.00011015,2]
[404312961,1770055087152,500.0,0.00011015,2]
[404312962,1770055087682,245.80931577,0.00011015,2]
[404312963,1770055087730,500.0,0.00011015,2]
[404312964,1770055087794,151.0,0.00011016,2]
[404312965,1770055088191,151.0,0.00011016,2]
[404312966,1770055088787,151.0,0.00011016,2]
[404312967,1770055089402,151.0,0.00011016,2]
[404312968,1770055090053,151.0,0.00011016,2]
[404312969,1770055090365,200.0,0.00011016,2]
[404312970,1770055090691,151.0,0.00011016,2]
[404312971,1770055091652,151.0,0.00011016,2]
[404312972,1770055091898,151.0,0.00011016,2]
[404312973,1770055092635,151.0,0.00011016,2]
[404312974,1770055093248,151.0,0.00011016,2]
[404312975,1770055093514,-800.0,0.000177,6]
[404312976,1770055093551,-200.0,0.000177,6]
[404312977,1770055093588,-800.0,0.000178,6]
[404312978,1770055093624,-200.0,0.000178,6]
[404312979,1770055093660,-800.0,0.000179,6]
[404312980,1770055093689,-200.0,0.000179,6]
[404312981,1770055093722,-150.0,0.00018,7]
[404312982,1770055093770,-1600.0,0.00018982,7]
[404312983,1770055093802,-500.0,0.00018982,7]
[404312984,1770055093833,-328.27626752,0.00019,7]
[404312985,1770055093866,-500.0,0.00019,7]
[404312986,1770055093897,-500.0,0.00019,7]
[404312987,1770055093928,-500.0,0.00019,7]
[404312988,1770055093961,-500.0,0.00019,7]
[404312989,1770055093994,-500.0,0.00019,7]
[404312990,1770055094025,-500.0,0.00019,7]
[404312991,1770055094056,-500.0,0.00019,7]
[404312992,1770055094085,-500.0,0.00019,7]
[404312993,1770055094114,-500.0,0.00019,7]
[404312994,1770055094144,-500.0,0.00019,7]
[404312995,1770055094173,-500.0,0.00019,7]
[404312996,1770055094204,-500.0,0.00019,7]
[404312997,1770055094234,-500.0,0.00019,7]
[404312998,1770055094263,-500.0,0.00019,7]
[404312999,1770055094293,-500.0,0.00019,7]
[404313000,1770055094326,-500.0,0.00019,7]
[404313001,1770055094356,-500.0,0.00019,7]
[404313002,1770055094385,-500.0,0.00019,7]
[404313003,1770055094415,-500.0,0.00019,7]
[404313004,1770055094445,-500.0,0.00019,7]
[404313005,1770055094475,-500.0,0.00019,7]
[404313006,1770055094508,-500.0,0.00019,7]
[404313007,1770055094781,-500.0,0.00019,7]
[404313008,1770055094813,-500.0,0.00019,7]
[404313009,1770055094843,-500.0,0.00019,7]
[404313010,1770055094872,-500.0,0.00019,7]
[404313011,1770055094900,-500.0,0.00019,7]
[404313012,1770055094928,-500.0,0.00019,7]
[404313013,1770055094957,-500.0,0.00019,7]
[404313014,1770055094987,-500.0,0.00019,7]
[404313015,1770055095017,-500.0,0.00019,7]
[404313016,1770055095050,-500.0,0.00019,7]
[404313017,1770055095080,-500.0,0.00019,7]
[404313018,1770055095109,-500.0,0.00019,7]
[404313019,1770055095140,-500.0,0.00019,7]
[404313020,1770055095169,-500.0,0.00019,7]
[404313021,1770055095199,-500.0,0.00019,7]
[404313022,1770055095229,-500.0,0.00019,7]
[404313023,1770055095259,-500.0,0.00019,7]
[404313024,1770055095289,-500.0,0.00019,7]
[404313025,1770055095318,-500.0,0.00019,7]
[404313026,1770055095347,-500.0,0.00019,7]
[404313027,1770055095377,-500.0,0.00019,7]
[404313028,1770055095408,-500.0,0.00019,7]
[404313029,1770055095439,-500.0,0.00019,7]
[404313030,1770055095468,-500.0,0.00019,7]
[404313031,1770055095501,-500.0,0.00019,7]
[404313032,1770055095530,-500.0,0.00019,7]
[404313033,1770055095560,-500.0,0.00019,7]
[404313034,1770055095590,-500.0,0.00019,7]
[404313035,1770055095620,-500.0,0.00019,7]
[404313036,1770055095650,-500.0,0.00019,7]
[404313037,1770055095679,-500.0,0.00019,7]
[404313038,1770055095708,-500.0,0.00019,7]
[404313039,1770055095737,-500.0,0.00019,7]
[404313040,1770055095767,-500.0,0.00019,7]
[404313041,1770055095795,-500.0,0.00019,7]
[404313042,1770055095826,-500.0,0.00019,7]
[404313043,1770055095855,-500.0,0.00019,7]
[404313044,1770055095885,-500.0,0.00019,7]
[404313045,1770055095915,-500.0,0.00019,7]
[404313046,1770055095946,-500.0,0.00019,7]
[404313047,1770055095975,-500.0,0.00019,7]
[404313048,1770055096005,-500.0,0.00019,7]
[404313049,1770055096037,-500.0,0.00019,7]
[404313050,1770055096066,-500.0,0.00019,7]
[404313051,1770055096097,-500.0,0.00019,7]
[404313052,1770055096127,-500.0,0.00019,7]
[404313053,1770055096158,-500.0,0.00019,7]
[404313054,1770055096189,-500.0,0.00019,7]
[404313055,1770055096221,-500.0,0.00019,7]
[404313056,1770055096252,-500.0,0.00019,7]
[404313057,1770055096283,-402.18,0.00019,7]
[404313058,1770055096313,-500.0,0.00019,7]
[404313059,1770055096343,-500.0,0.00019,7]
[404313060,1770055096372,-500.0,0.00019,7]
[404313061,1770055096402,-500.0,0.00019,7]
[404313062,1770055096432,-500.0,0.00019,7]
[404313063,1770055096462,-500.0,0.00019,7]
[404313064,1770055096493,-500.0,0.00019,7]
[404313065,1770055096525,-500.0,0.00019,7]
[404313066,1770055096555,-500.0,0.00019,7]
[404313067,1770055096585,-500.0,0.00019,7]
[404313068,1770055096615,-500.0,0.00019,7]
[404313069,1770055096645,-500.0,0.00019,7]
[404313070,1770055096675,-500.0,0.00019,7]
[404313071,1770055096703,-500.0,0.00019,7]
[404313072,1770055096732,-500.0,0.00019,7]
[404313073,1770055096762,-500.0,0.00019,7]
[404313074,1770055096793,-500.0,0.00019,7]
[404313075,1770055096825,-500.0,0.00019,7]
[404313076,1770055096855,-500.0,0.00019,7]
[404313077,1770055096888,-500.0,0.00019,7]
[404313078,1770055096920,-500.0,0.00019,7]
[404313079,1770055096952,-500.0,0.00019,7]
[404313080,1770055096984,-500.0,0.00019,7]
[404313081,1770055097020,-500.0,0.00019,7]
[404313082,1770055097054,-500.0,0.00019,7]
[404313083,1770055097087,-500.0,0.00019,7]
[404313084,1770055097121,-500.0,0.00019,7]
[404313085,1770055097153,-500.0,0.00019,7]
[404313086,1770055097187,-159.91,0.00019,7]
[404313087,1770055097220,-500.0,0.00019,7]
[404313088,1770055097254,-500.0,0.00019,7]
[404313089,1770055097286,-500.0,0.00019,7]
[404313090,1770055097315,-500.0,0.00019,5]
[404313091,1770055097344,-500.0,0.00019,5]
[404313092,1770055097372,-500.0,0.00019,5]
[404313093,1770055097406,-900.0,0.00019256,7]
[404313094,1770055097438,-800.0,0.000199,7]
[404313095,1770055097468,-200.0,0.000199,7]
[404313096,1770055097504,-156908.0,0.0002,7]
[404313097,1770055097537,-240.106668,0.0002,10]
[404313098,1770055097570,-1600.0,0.00020078,7]
[404313099,1770055097602,-500.0,0.00020078,7]
[404313100,1770055097634,-900.0,0.00020352,7]
[404313101,1770055097668,-152.0,0.00020643,5]
[404313102,1770055097700,-500.0,0.00021,10]
[404313103,1770055097731,-817.0,0.00021029,10]
[404313104,1770055097763,-1600.0,0.00021174,7]
[404313105,1770055097793,-500.0,0.00021174,7]
[404313106,1770055097826,-900.0,0.00021448,7]
[404313107,1770055097862,-151.25,0.00022,7]
[404313108,1770055097891,-3560.71802719,0.00022,30]
[404313109,1770055097921,-152.0,0.00022029,6]
[404313110,1770055097949,-340.0,0.0002208,5]
[404313111,1770055097979,-1600.0,0.0002227,7]
[404313112,1770055098008,-500.0,0.0002227,7]
[404313113,1770055098038,-502.0,0.00022342,5]
[404313114,1770055098070,-900.0,0.00022544,7]
[404313115,1770055098113,-163.0,0.00023,7]
[404313116,1770055098147,-502.0,0.00023178,5]
[404313117,1770055098185,-163.0,0.00023288,7]
[404313118,1770055098225,-1600.0,0.00023366,7]
[404313119,1770055098260,-500.0,0.00023366,7]
[404313120,1770055098295,-152.0,0.00023414,7]
[404313121,1770055098330,-900.0,0.0002364,7]
[404313122,1770055098366,-502.0,0.00024014,6]
[404313123,1770055098401,-163.0,0.00024164,7]
[404313124,1770055098438,-1600.0,0.00024462,7]
[404313125,1770055098476,-500.0,0.00024462,7]
[404313126,1770055098518,-150.0,0.000246,14]
[404313127,1770055098557,-152.0,0.00024799,8]
[404313128,1770055098597,-415.047629,0.000248,7]
[404313129,1770055098634,-415.047629,0.000248,7]
[404313130,1770055098672,-415.047629,0.000248,7]
[404313131,1770055098710,-415.047629,0.000248,7]
[404313132,1770055098746,-151.0,0.000248,7]
[404313133,1770055098784,-151.0,0.000248,7]
[404313134,1770055098819,-151.0,0.000248,7]
[404313135,1770055098856,-4098.329161,0.000248,7]
[404313136,1770055098891,-4098.329161,0.000248,7]
[404313137,1770055098926,-4098.329161,0.000248,7]
[404313138,1770055098965,-4098.329161,0.000248,7]
[404313139,1770055098996,-151.0,0.000248,7]
[404313140,1770055099029,-151.0,0.000248,7]
[404313141,1770055099063,-151.0,0.000248,7]
[404313142,1770055099098,-151.0,0.000248,7]
[404313143,1770055099134,-464.765862,0.000248,7]
[404313144,1770055099170,-464.765862,0.000248,7]
[404313145,1770055099206,-464.765862,0.000248,7]
[404313146,1770055099240,-464.765862,0.000248,7]
[404313147,1770055099274,-151.0,0.000248,7]
[404313148,1770055099312,-163.218914,0.000248,7]
[404313149,1770055099348,-502.0,0.00024849,7]
[404313150,1770055099381,-170.88361914,0.00025,5]
[404313151,1770055099414,-531.0,0.00025,5]
[404313152,1770055099447,-6910.98241925,0.00025,21]
[404313153,1770055099482,-151.4377,0.00025,5]
[404313154,1770055099514,-150.0,0.00025,17]
[404313155,1770055099549,-261.7915846,0.00025,10]
[404313156,1770055099582,-500.0,0.00025,14]
[404313157,1770055099615,-169.0,0.00025373,7]
[404313158,1770055099648,-4040.0,0.00025463,7]
[404313159,1770055099680,-502.0,0.00025685,8]
[404313160,1770055099714,-900.0,0.00025832,7]
[404313161,1770055099746,-150.0,0.00026,20]
[404313162,1770055099778,-152.0,0.00026185,9]
[404313163,1770055099812,-502.0,0.00026521,9]
[404313164,1770055099845,-1600.0,0.00026654,7]
[404313165,1770055099878,-500.0,0.00026654,7]
[404313166,1770055099911,-211831.32448829,0.000268,7]
[404313167,1770055099944,-150.0,0.00027,23]
[404313168,1770055099977,-502.0,0.00027356,9]
[404313169,1770055100014,-474.97,0.00027397,30]
[404313170,1770055100047,-151.0,0.00027397,7]
[404313171,1770055100080,-273.478966,0.00027397,7]
[404313172,1770055100114,-750.0,0.00027397,20]
[404313173,1770055100148,-519.94408401,0.00027397,5]
[404313174,1770055100182,-159.30862363,0.00027397,5]
[404313175,1770055100219,-152.0,0.0002757,10]
[404313176,1770055100254,-155.08889121,0.0002757,5]
[404313177,1770055100289,-152.0,0.0002757,5]
[404313178,1770055100323,-163.0,0.0002791,14]
[404313179,1770055100355,-150.0,0.00028,26]
[404313180,1770055100388,-900.0,0.00028024,14]
[404313181,1770055100422,-502.0,0.00028192,10]
[404313182,1770055100458,-1600.0,0.00028846,14]
[404313183,1770055100492,-500.0,0.00028846,14]
[404313184,1770055100526,-163.0,0.00028997,14]
[404313185,1770055100560,-150.0,0.00029,29]
[404313186,1770055100594,-502.0,0.00029027,11]
[404313187,1770055100629,-4319.48739553,0.000295,120]